bitfinex/quotes_ETHUSD_20230116
["timestamp","ask_amount","ask_price","bid_price","bid_amount"]
[1673887909991,0.05375049,1548.5,1548.3,8.52458]
[1673887910572,0.05375049,1548.5,1548.3,6.52458]
[1673887910777,0.05375049,1548.5,1548.3,8.52458]
[1673887911230,0.05375049,1548.5,1548.3,0.066]
[1673887911231,1.497,1548.4,1548.3,0.066]
[1673887911446,1.497,1548.4,1548.3,3.0]
[1673887911683,1.497,1548.4,1548.3,9.45869]
[1673887911831,0.05375049,1548.5,1548.3,15.98338]
[1673887912254,0.05375049,1548.5,1548.3,18.77442136]
[1673887912829,0.05375049,1548.5,1548.4,14.91654]
[1673887913050,0.05375049,1548.5,1548.4,14.98254]
[1673887914040,0.05375049,1548.5,1548.4,21.44081]
[1673887914504,0.05375049,1548.5,1548.4,24.44081]
[1673887914726,0.05375049,1548.5,1548.4,27.46399514]
[1673887915507,0.05375049,1548.5,1548.4,30.73678192]
[1673887915771,0.05375049,1548.5,1548.4,31.51360128]
[1673887915946,0.05375049,1548.5,1548.4,31.99820128]
[1673887916157,0.05375049,1548.5,1548.4,31.51360128]
[1673887918599,0.05375049,1548.5,1548.4,31.51160128]
[1673887918811,0.05375049,1548.5,1548.4,31.51360128]
[1673887919923,0.05375049,1548.5,1548.4,31.527019]
[1673887921954,0.05375049,1548.5,1548.4,30.98019964]
[1673887922591,0.05481043,1548.6,1548.5,22.09016545]
[1673887922920,0.05481043,1548.6,1548.5,29.67433474]
[1673887923290,0.72981043,1548.6,1548.5,16.02130545]
[1673887923702,0.72981043,1548.6,1548.5,3.10558545]
[1673887923703,2.22681043,1548.6,1548.5,3.10558545]
[1673887924019,2.22681043,1548.6,1548.5,0.03958545]
[1673887924647,2.71131043,1548.6,1548.5,0.03958545]
[1673887924858,2.22681043,1548.6,1548.5,0.03958545]
[1673887925124,3.15561952,1548.6,1548.5,0.03958545]
[1673887925699,14.3828463,1548.6,1548.5,0.03958545]
[1673887925943,14.4488463,1548.6,1548.5,0.03958545]
[1673887926384,16.9333463,1548.6,1548.5,0.03958545]
[1673887926599,21.3907863,1548.6,1548.5,0.03958545]
[1673887928287,14.9333463,1548.6,1548.5,0.03958545]
[1673887930237,8.4759063,1548.6,1548.5,0.03958545]
[1673887930421,14.9333463,1548.6,1548.5,0.03958545]
[1673887930636,21.3907863,1548.6,1548.5,0.03958545]
[1673887930840,21.3907863,1548.6,1548.0,54.41286]
[1673887930841,2.0,1548.5,1548.0,30.196]
[1673887931123,2.991,1548.1,1548.0,30.196]
[1673887931275,2.991,1548.1,1548.0,0.066]
[1673887931481,1.494,1548.1,1547.9,2.0]
[1673887931811,7.00985,1548.2,1547.9,2.0]
[1673887932047,1.497,1548.0,1547.9,2.0]
[1673887932588,1.497,1548.0,1547.8,20.97458]
[1673887932589,1.497,1548.0,1547.8,0.066]
[1673887932895,1.6437,1548.0,1547.7,3.10921381]
[1673887933053,1.497,1547.8,1547.7,0.04321381]
[1673887935100,0.06,1548.3,1547.7,3.99300059]
[1673887935414,0.06881043,1548.6,1548.0,8.87284568]
[1673887935639,0.05481043,1548.6,1548.2,1.487]
[1673887935785,0.05481043,1548.6,1548.3,2.56615891]
[1673887936004,0.05481043,1548.6,1548.4,4.44984689]
[1673887936225,0.05481043,1548.6,1548.5,8.06078791]
[1673887936434,0.05481043,1548.6,1548.5,18.41970052]
[1673887936688,0.1218376,1549.1,1548.6,7.24047293]
[1673887936689,0.0558376,1549.1,1548.6,7.24047293]
[1673887937003,0.0558376,1549.1,1548.8,12.91322]
[1673887937260,0.0558376,1549.1,1548.8,20.23570608]
[1673887937394,0.0558376,1549.1,1548.8,24.03005949]
[1673887937744,0.0558376,1549.1,1548.9,0.07817278]
[1673887938064,0.0558376,1549.1,1549.0,13.14154]
[1673887938210,0.0558376,1549.1,1549.0,19.48032678]
[1673887938422,0.0558376,1549.1,1549.0,24.80431611]
[1673887938633,0.0558376,1549.1,1549.0,28.40532963]
[1673887938893,7.6e-06,1549.1,1549.0,30.80807204]
[1673887939051,0.06823994,1549.3,1549.0,33.74002448]
[1673887939261,0.07261493,1549.4,1549.2,3.27278678]
[1673887939520,1.493e-05,1549.4,1549.3,15.15971766]
[1673887939696,0.07173952,1549.6,1549.3,20.75837107]
[1673887939913,0.07173952,1549.6,1549.5,12.90738]
[1673887940264,0.07173952,1549.6,1549.5,20.04052019]
[1673887940478,0.07173952,1549.6,1549.5,22.72887221]
[1673887940788,0.07173952,1549.6,1549.5,29.18256221]
[1673887941106,0.06653979,1550.1,1549.9,6.52274999]
[1673887941257,0.06653979,1550.1,1550.0,5.0]
[1673887941472,0.06653979,1550.1,1550.0,5.066]
[1673887941699,0.06653979,1550.1,1550.0,6.222875]
[1673887941887,0.06653979,1550.1,1550.0,6.224875]
[1673887942092,0.06653979,1550.1,1550.0,3.066]
[1673887942309,0.06653979,1550.1,1550.0,11.45161]
[1673887942567,0.06653979,1550.1,1550.0,11.51761]
[1673887942939,2.23853979,1550.1,1550.0,0.066]
[1673887943149,3.95929939,1550.1,1549.9,3.07099999]
[1673887943373,1.497,1550.0,1549.9,3.07099999]
[1673887943848,1.497,1550.0,1549.9,11.52301999]
[1673887944000,0.06653979,1550.1,1549.9,11.58901999]
[1673887944472,0.06653979,1550.1,1550.0,2.0]
[1673887946137,0.06653979,1550.1,1549.9,11.58901999]
[1673887946307,1.7267994,1550.1,1549.9,3.13699999]
[1673887946517,1.497,1550.0,1549.9,3.07099999]
[1673887946762,1.497,1550.0,1549.9,9.52301999]
[1673887947098,1.56353979,1550.1,1549.9,16.04103999]
[1673887947342,1.56353979,1550.1,1549.9,18.04103999]
[1673887948201,1.49,1550.0,1549.9,0.13699999]
[1673887948414,1.49,1550.0,1549.9,0.07099999]
[1673887948626,1.9741,1550.0,1549.9,0.07099999]
[1673887950303,2.0,1549.9,1549.7,6.51865]
[1673887950516,7.95578678,1549.8,1549.7,0.066]
[1673887950878,5.2332,1549.8,1549.4,6.51985]
[1673887951034,2.2472,1549.8,1549.4,12.97392]
[1673887951243,1.9812,1549.8,1549.5,2.0]
[1673887951459,1.497,1549.8,1549.6,12.90654]
[1673887951694,1.497,1549.8,1549.6,12.97254]
[1673887952118,1.497,1549.8,1549.7,8.45286]
[1673887952396,1.497,1549.8,1549.7,14.97172]
[1673887952665,1.497,1549.8,1549.7,6.51886]
[1673887952858,1.497,1549.8,1549.7,12.97172]
[1673887953147,0.4841,1550.0,1549.8,3.497]
[1673887953148,1.496,1549.9,1549.8,3.497]
[1673887953358,1.496,1549.9,1549.8,16.40188]
[1673887953567,1.496,1549.9,1549.8,19.46788]
[1673887953988,1.496,1549.9,1549.8,17.46788]
[1673887954415,1.56053979,1550.1,1549.8,17.46788]
[1673887955027,1.56053979,1550.1,1549.9,2.0]
[1673887955460,1.56053979,1550.1,1550.0,6.45161]
[1673887955671,1.56053979,1550.1,1550.0,6.51761]
[1673887956086,1.39053979,1550.1,1550.0,6.51761]
[1673887956297,0.06653979,1550.1,1550.0,12.96922]
[1673887956549,0.06653979,1550.1,1550.0,18.111329]
[1673887956988,0.484,1550.5,1550.0,18.111329]
[1673887956989,18.76598187,1550.6,1550.0,20.111329]
[1673887957132,1.329,1550.3,1550.1,2.0]
[1673887957347,1.329,1550.3,1550.1,8.45104]
[1673887957584,1.324,1550.2,1550.1,0.066]
[1673887957798,1.324,1550.2,1550.0,15.96898]
[1673887958390,1.324,1550.2,1550.1,2.0]
[1673887958600,1.324,1550.2,1550.1,14.90238]
[1673887958846,1.324,1550.2,1550.1,14.96838]
[1673887960176,1.385,1550.4,1550.1,26.861545]
[1673887960387,1.385,1550.4,1550.1,23.861545]
[1673887960388,1.319,1550.4,1550.1,23.861545]
[1673887960631,1.319,1550.4,1550.3,8.45036]
[1673887960846,1.319,1550.4,1550.3,8.51636]
[1673887961454,14.35915979,1550.7,1550.3,8.51636]
[1673887961455,1.324,1550.5,1550.3,8.51636]
[1673887962317,1.324,1550.5,1550.3,2.066]
[1673887962318,1.318,1550.4,1550.3,2.066]
[1673887962600,1.318,1550.4,1550.3,2.0]
[1673887962814,1.318,1550.4,1550.2,24.41773]
[1673887962982,1.318,1550.4,1550.3,2.0]
[1673887963184,1.318,1550.4,1550.3,8.45036]
[1673887963400,1.325,1550.5,1550.3,14.96672]
[1673887964090,1.329,1550.4,1550.3,0.066]
[1673887964299,2.648,1550.4,1550.2,6.51644]
[1673887964452,1.316,1550.3,1550.2,6.51644]
[1673887964662,1.316,1550.3,1550.2,0.066]
[1673887964663,2.638,1550.3,1550.2,0.066]
[1673887964937,2.9018,1550.3,1550.0,12.96884]
[1673887965079,1.329,1550.1,1550.0,6.51742]
[1673887965294,1.329,1550.1,1550.0,9.51742]
[1673887965507,1.329,1550.1,1550.0,6.51742]
[1673887966712,2.658,1550.1,1550.0,0.066]
[1673887967030,2.658,1550.1,1549.8,8.45222]
[1673887967031,2.7909,1550.1,1549.8,0.066]
[1673887967341,2.7909,1550.1,1549.8,2.0]
[1673887967342,1.324,1549.9,1549.8,2.0]
[1673887967570,1.324,1549.9,1549.8,8.45244]
[1673887967730,1.326,1549.9,1549.8,14.96888]
[1673887967934,1.324,1549.9,1549.8,8.51844]
[1673887968761,1.329,1550.0,1549.8,16.667979]
[1673887969089,1.329,1550.2,1550.0,14.90285]
[1673887969321,1.329,1550.2,1550.0,14.96885]
[1673887970001,1.32,1550.3,1550.0,14.96885]
[1673887970178,1.323,1550.4,1550.2,12.90156]
[1673887970384,1.323,1550.4,1550.2,12.96756]
[1673887970788,1.323,1550.4,1550.3,8.45036]
[1673887971022,1.323,1550.4,1550.3,8.51636]
[1673887971595,1.323,1550.4,1550.3,14.96672]
[1673887972012,1.325,1550.4,1550.3,14.96472]
[1673887972228,1.323,1550.4,1550.3,14.96672]
[1673887972980,1.323,1550.4,1550.3,12.96672]
[1673887973491,1.323,1550.4,1550.3,6.51636]
[1673887974223,1.323,1550.4,1550.3,14.96672]
[1673887975120,1.325,1550.4,1550.3,14.96472]
[1673887975288,1.323,1550.4,1550.3,14.96672]
[1673887975485,1.323,1550.4,1550.3,12.96672]
[1673887977728,1.323,1550.4,1550.3,14.96379941]
[1673887979227,1.323,1550.4,1550.3,21.41415941]
[1673887979377,1.323,1550.4,1550.3,19.41415941]
[1673887979587,1.323,1550.4,1550.3,6.51343941]
[1673887979792,3.74910479,1550.4,1550.3,6.51343941]
[1673887980274,2.548,1550.4,1550.3,6.51343941]
[1673887980456,3.51364072,1550.4,1550.3,6.51343941]
[1673887980629,2.548,1550.4,1550.3,8.51343941]
[1673887981056,3.80781666,1550.5,1550.3,8.51343941]
[1673887981354,1.329,1550.5,1550.3,21.41415941]
[1673887981536,1.329,1550.5,1550.4,2.0]
[1673887981838,1.329,1550.5,1550.4,14.89988]
[1673887982029,1.329,1550.5,1550.4,14.96588]
[1673887982626,1.319,1550.6,1550.5,0.96041799]
[1673887982836,1.319,1550.6,1550.5,21.63800798]
[1673887983095,1.319,1550.6,1550.5,21.70400798]
[1673887983522,1.319,1550.6,1550.5,24.07440878]
[1673887984841,1.319,1550.6,1550.5,8.80494798]
[1673887985051,1.319,1550.6,1550.5,2.35541798]
[1673887985264,1.319,1550.6,1550.5,2.28941798]
[1673887987073,13.81707272,1550.6,1550.5,2.28941798]
[1673887987266,27.26519272,1550.6,1550.5,2.28941798]
[1673887987644,20.81608272,1550.6,1550.5,2.28941798]
[1673887988157,1.385,1550.6,1550.5,8.73894798]
[1673887988306,1.38553979,1550.7,1550.5,8.80494798]
[1673887988307,0.06653979,1550.7,1550.5,8.80494798]
[1673887988514,0.06653979,1550.7,1550.6,3.0]
[1673887988722,0.06653979,1550.7,1550.6,17.98236399]
[1673887988982,0.06653979,1550.7,1550.6,26.41465901]
[1673887989152,0.06653979,1550.7,1550.6,25.223793]
[1673887989368,0.06653979,1550.7,1550.6,11.59924396]
[1673887989578,0.06653979,1550.7,1550.6,3.066]
[1673887989776,1.39153979,1550.7,1550.6,3.0]
[1673887989979,1.39153979,1550.7,1550.5,2.83941798]
[1673887990332,1.329,1550.6,1550.5,2.28941798]
[1673887990541,1.329,1550.6,1550.5,5.28941798]
[1673887990715,1.329,1550.6,1550.5,5.35541798]
[1673887991604,1.329,1550.6,1550.5,2.35541798]
[1673887991919,1.329,1550.6,1550.5,2.28941798]
[1673887992347,1.39153979,1550.7,1550.5,8.73894798]
[1673887992501,1.39153979,1550.7,1550.6,2.0]
[1673887992928,1.39153979,1550.7,1550.5,17.25447798]
[1673887993559,0.06653979,1550.7,1550.5,26.27441378]
[1673887993770,0.06653979,1550.7,1550.6,8.44911]
[1673887994017,0.06653979,1550.7,1550.6,21.41333]
[1673887994441,0.06653979,1550.7,1550.6,28.0042056]
[1673887994662,0.06653979,1550.7,1550.6,24.64333]
[1673887994829,0.06653979,1550.7,1550.6,29.05135179]
[1673887996512,0.06653979,1550.7,1550.6,28.25699838]
[1673887996748,0.06653979,1550.7,1550.6,24.41333]
[1673887996935,0.06653979,1550.7,1550.6,15.96422]
[1673887997167,0.06653979,1550.7,1550.6,9.51511]
[1673887997568,1.38253979,1550.7,1550.6,9.51511]
[1673888000816,0.06653979,1550.7,1550.6,24.41333]
[1673888001019,0.06653979,1550.7,1550.6,27.7285578]
[1673888002852,0.08469067,1550.9,1550.7,2.0]
[1673888003074,0.08469067,1550.9,1550.8,12.89656]
[1673888003293,0.08469067,1550.9,1550.8,12.96256]
[1673888003801,0.08469067,1550.9,1550.8,14.96256]
[1673888004014,0.08469067,1550.9,1550.8,23.751928]
[1673888004612,0.08469067,1550.9,1550.8,26.751928]
[1673888007979,0.08469067,1550.9,1550.8,26.749928]
[1673888008307,6.7e-07,1550.9,1550.8,27.465828]
[1673888008531,0.11512515,1551.1,1550.9,2.0]
[1673888008856,0.11512515,1551.1,1551.0,22.21935]
[1673888009025,0.11512515,1551.1,1551.0,22.28535]
[1673888009384,0.11512515,1551.1,1551.0,25.28535]
[1673888010862,0.11512515,1551.1,1551.0,23.28535]
[1673888011013,0.11512515,1551.1,1551.0,23.08535]
[1673888017103,0.11512515,1551.1,1551.0,15.9609]
[1673888017347,1.44212515,1551.1,1551.0,15.9609]
[1673888017771,1.44212515,1551.1,1551.0,6.51345]
[1673888018256,1.44212515,1551.1,1551.0,19.40835]
[1673888018461,0.11512515,1551.1,1551.0,12.9609]
[1673888018709,0.11512515,1551.1,1551.0,21.349204]
[1673888020687,0.11512515,1551.1,1551.0,24.349204]
[1673888021252,0.11512515,1551.1,1551.0,15.9609]
[1673888021411,0.11512515,1551.1,1551.0,21.40835]
[1673888022831,1e-08,1551.1,1551.0,21.40835]
[1673888023150,1e-08,1551.1,1551.0,24.40835]
[1673888025199,0.11512515,1551.2,1551.1,0.67899999]
[1673888025410,0.11512515,1551.2,1551.1,25.88791119]
[1673888025661,0.11512515,1551.2,1551.1,25.95391119]
[1673888026452,0.11512515,1551.2,1551.1,26.18391119]
[1673888026677,0.11512515,1551.2,1551.1,25.95391119]
[1673888026923,0.11512515,1551.2,1551.1,23.08608999]
[1673888027131,0.11512515,1551.2,1551.1,9.51502999]
[1673888027505,1.59612515,1551.2,1551.1,9.51502999]
[1673888027762,1.59612515,1551.2,1551.1,15.96205999]
[1673888028078,0.11512515,1551.2,1551.1,24.65004099]
[1673888029759,0.11512515,1551.2,1551.1,15.96205999]
[1673888029975,1.60912515,1551.2,1551.1,9.51502999]
[1673888030340,1.60912515,1551.2,1551.1,6.51502999]
[1673888031142,1.60912515,1551.2,1551.1,0.06799999]
[1673888031283,8.61755593,1551.2,1551.1,0.00199999]
[1673888031493,10.613094,1551.2,1551.1,0.00199999]
[1673888031777,1.67512515,1551.2,1551.1,12.89605999]
[1673888031908,1.67112515,1551.2,1551.1,12.90005999]
[1673888032122,1.60912515,1551.2,1551.1,12.96205999]
[1673888032859,0.11512515,1551.2,1551.1,12.96205999]
[1673888033065,0.11512515,1551.2,1551.1,21.17578777]
[1673888033321,0.11512515,1551.2,1551.1,23.00552297]
[1673888033653,0.11512515,1551.2,1551.1,21.40578777]
[1673888034171,0.11512515,1551.2,1551.1,17.90300099]
[1673888034325,0.11512515,1551.2,1551.1,19.90300099]
[1673888034791,0.11512515,1551.2,1551.1,23.40578777]
[1673888035182,0.11512515,1551.2,1551.1,20.13300099]
[1673888035396,0.11512515,1551.2,1551.1,19.90300099]
[1673888036486,0.11512515,1551.2,1551.1,26.35003099]
[1673888038608,0.11512515,1551.2,1551.1,34.81140084]
[1673888038929,0.11512515,1551.2,1551.1,35.04140084]
[1673888039089,0.11512515,1551.2,1551.1,31.45255283]
[1673888039749,0.00012515,1551.2,1551.1,33.44065915]
[1673888039970,0.11137951,1551.3,1551.1,39.89456539]
[1673888039971,0.00050466,1551.3,1551.1,39.89456539]
[1673888040314,0.00050466,1551.3,1551.2,30.15905806]
[1673888040445,0.00050466,1551.3,1551.2,32.62446548]
[1673888040656,0.00050466,1551.3,1551.2,32.62441906]
[1673888041445,0.00050466,1551.3,1551.2,42.36355806]
[1673888041977,0.00050466,1551.3,1551.2,44.76300317]
[1673888043199,0.00050466,1551.3,1551.2,40.76381654]
[1673888043763,2.24450466,1551.3,1551.2,6.51262]
[1673888043971,2.24450466,1551.3,1551.2,0.066]
[1673888044130,2.24450466,1551.3,1551.1,12.96184999]
[1673888044342,1.49450466,1551.3,1551.2,6.44662]
[1673888044704,1.49450466,1551.3,1551.2,6.51262]
[1673888045339,0.00050466,1551.3,1551.2,8.51262]
[1673888045491,0.00250466,1551.3,1551.2,8.51062]
[1673888045697,0.00050466,1551.3,1551.2,8.51262]
[1673888045913,0.00050466,1551.3,1551.2,23.746707]
[1673888046123,0.11137951,1551.5,1551.3,2.00149534]
[1673888046394,0.11137951,1551.5,1551.4,14.89158]
[1673888046550,0.11137951,1551.5,1551.4,21.40337]
[1673888050435,0.11137951,1551.5,1551.4,24.40337]
[1673888050637,0.11137951,1551.5,1551.4,29.13648928]
[1673888051305,0.11137951,1551.5,1551.4,29.13448928]
[1673888051522,0.11137951,1551.5,1551.4,29.13648928]
[1673888052779,0.11137951,1551.5,1551.4,29.62018928]
[1673888053250,0.11137951,1551.5,1551.4,29.13648928]
[1673888053750,0.11137951,1551.5,1551.4,37.71278725]
[1673888053962,0.11137951,1551.5,1551.4,41.71112222]
[1673888054117,0.11137951,1551.5,1551.4,32.63727606]
[1673888054457,0.11137951,1551.5,1551.4,34.23869719]
[1673888054652,0.000312,1551.6,1551.5,21.33611]
[1673888054873,0.000312,1551.6,1551.5,42.47339867]
[1673888055067,0.11137951,1551.7,1551.6,2.0]
[1673888055267,0.11137951,1551.7,1551.6,12.08760165]
[1673888055480,0.11137951,1551.7,1551.6,21.94230678]
[1673888056129,0.11137951,1551.7,1551.6,31.97208189]
[1673888056338,0.11137951,1551.7,1551.6,37.49239658]
[1673888056749,0.00037951,1551.7,1551.6,37.49239658]
[1673888057003,0.0074215,1551.8,1551.7,21.33362]
[1673888057174,0.0074215,1551.8,1551.7,32.97354889]
[1673888057380,0.0074215,1551.8,1551.7,34.02054884]
[1673888057608,0.0074215,1551.8,1551.7,38.81913119]
[1673888057825,0.0074215,1551.8,1551.7,51.03303119]
[1673888058006,0.12130026,1551.9,1551.8,2.356]
[1673888058232,0.12130026,1552.0,1551.8,13.93790928]
[1673888058478,0.12130026,1552.0,1551.9,4.99678678]
[1673888058688,0.12130026,1552.0,1551.9,34.83155621]
[1673888058898,0.12130026,1552.0,1551.9,33.96695616]
[1673888059119,0.12130026,1552.0,1551.9,35.45795616]
[1673888059428,0.066,1552.7,1552.0,6.898]
[1673888059585,2.41150122,1553.0,1552.3,1.484]
[1673888059586,0.066,1553.0,1552.3,1.484]
[1673888059791,1.99695957,1553.1,1552.6,12.88152]
[1673888059792,5.84246079,1553.1,1552.6,12.88152]
[1673888060002,6.39156079,1553.1,1552.7,1.288152]
[1673888060257,6.39156079,1553.1,1552.9,6.43956]
[1673888060258,0.5565215,1553.1,1552.9,6.43956]
[1673888060422,0.0074215,1553.1,1552.9,0.066]
[1673888060633,1.4934215,1553.1,1552.9,3.0]
[1673888061080,1.494,1553.0,1552.8,3.066]
[1673888061342,1.494,1552.9,1552.7,3.066]
[1673888061557,1.494,1552.9,1552.7,3.0]
[1673888061714,1.491,1553.0,1552.5,9.50687]
[1673888061923,1.491,1553.0,1552.7,2.0]
[1673888062183,1.491,1553.0,1552.7,5.0]
[1673888062401,1.4934215,1553.1,1552.8,9.94275678]
[1673888062714,1.4934215,1553.1,1552.9,2.0]
[1673888063022,1.4934215,1553.1,1552.8,10.00875678]
[1673888063023,1.4934215,1553.1,1552.8,0.066]
[1673888063267,1.4934215,1553.1,1552.7,11.506]
[1673888063404,1.4934215,1553.1,1552.7,16.57344178]
[1673888063613,1.4934215,1553.1,1552.7,11.506]
[1673888064077,1.4934215,1553.1,1552.7,17.94639]
[1673888064289,1.4934215,1553.1,1552.8,3.50278678]
[1673888064599,0.0074215,1553.1,1552.9,6.43956]
[1673888064926,1.64706365,1553.1,1552.9,0.066]
[1673888065093,1.492,1553.0,1552.8,0.066]
[1673888065297,1.494,1552.9,1552.7,9.50636]
[1673888065515,0.53502549,1552.9,1552.7,9.50636]
[1673888065864,0.53502549,1552.9,1552.7,3.066]
[1673888066079,1.494,1552.8,1552.6,0.066]
[1673888066388,9.56479,1552.7,1552.3,0.066]
[1673888066708,1.494,1552.4,1552.1,11.8609]
[1673888066859,1.28287985,1552.5,1552.1,0.066]
[1673888067069,1.486,1552.3,1552.2,2.0]
[1673888067311,1.486,1552.3,1552.1,2.066]
[1673888067526,1.486,1552.3,1552.1,2.0]
[1673888068349,1.486,1552.3,1552.0,0.36390077]
[1673888068545,1.494,1552.2,1552.0,0.36390077]
[1673888068754,1.494,1552.1,1552.0,0.36390077]
[1673888070681,2.977,1552.1,1552.0,0.36390077]
[1673888070927,9.41988,1552.1,1552.0,0.36390077]
[1673888071069,9.48588,1552.1,1552.0,0.36390077]
[1673888071703,18.363635,1552.1,1552.0,0.36390077]
[1673888071918,24.806515,1552.1,1552.0,0.36390077]
[1673888077016,29.56730178,1552.1,1552.0,0.36390077]
[1673888077174,30.05080178,1552.1,1551.6,30.196]
[1673888077388,2.969,1551.7,1551.6,0.066]
[1673888077603,2.969,1551.7,1551.3,43.08784]
[1673888077793,1.481,1551.6,1551.4,6.308784]
[1673888078007,1.494,1551.5,1551.4,2.066]
[1673888078229,1.494,1551.5,1551.3,12.95784]
[1673888078472,1.492,1551.4,1551.3,12.95784]
[1673888078697,1.481,1551.6,1551.4,1.06712119]
[1673888078885,1.494,1551.5,1551.4,1.06712119]
[1673888079058,1.481,1551.6,1551.4,9.41538731]
[1673888079261,1.481,1551.6,1551.4,9.48138731]
[1673888079741,1.481,1551.6,1551.5,2.0]
[1673888081912,1.4777,1551.6,1551.5,2.0]
[1673888085147,1.4777,1551.6,1551.4,9.48138731]
[1673888085501,1.4777,1551.6,1551.4,3.03561731]
[1673888085820,1.4777,1551.6,1551.4,2.96961731]
[1673888086072,1.4777,1551.6,1551.4,9.41537731]
[1673888086398,1.4777,1551.6,1551.4,11.48137731]
[1673888086819,12.95482,1551.8,1551.5,2.0]
[1673888086975,1.494,1551.6,1551.5,2.0]
[1673888087179,1.494,1551.6,1551.4,9.48137731]
[1673888087419,1.494,1551.6,1551.4,11.48137731]
[1673888088023,1.494,1551.6,1551.4,5.03561731]
[1673888088278,1.494,1551.6,1551.4,3.03561731]
[1673888088443,7.77098,1551.6,1551.4,1.06712119]
[1673888088657,14.28196,1551.6,1551.4,1.06712119]
[1673888090790,1.392,1551.6,1551.4,1.06712119]
[1673888091021,1.326,1551.6,1551.4,20.40449119]
[1673888091209,1.326,1551.6,1551.5,8.48581912]
[1673888091423,1.326,1551.6,1551.5,10.55181912]
[1673888092808,1.326,1551.8,1551.5,16.99718912]
[1673888093910,7.77015,1551.8,1551.5,2.10644912]
[1673888094160,7.83615,1551.8,1551.5,2.04044912]
[1673888094694,7.83615,1551.8,1551.5,4.04044912]
[1673888094856,14.2803,1551.8,1551.5,2.0]
[1673888095087,7.83615,1551.8,1551.5,2.0]
[1673888096014,7.83615,1551.8,1551.4,14.02424119]
[1673888096271,1.326,1551.6,1551.4,14.02424119]
[1673888097315,1.326,1551.6,1551.4,16.02424119]
[1673888097486,1.326,1551.6,1551.4,18.57127231]
[1673888097695,1.326,1551.6,1551.4,10.12569231]
[1673888097963,1.326,1551.6,1551.4,1.13312119]
[1673888098172,1.316,1551.5,1551.4,1.06712119]
[1673888098526,14.20674,1551.5,1551.4,1.06712119]
[1673888098699,14.27274,1551.5,1551.4,1.07454269]
[1673888099068,20.71811,1551.5,1551.4,1.07454269]
[1673888099320,21.99289419,1551.5,1551.4,1.07454269]
[1673888100221,25.26568097,1551.5,1551.4,1.07454269]
[1673888100694,22.47649419,1551.5,1551.4,1.07454269]
[1673888101023,14.27274,1551.5,1551.4,1.07454269]
[1673888104161,23.99089678,1551.5,1551.4,1.07454269]
[1673888104373,25.31289678,1551.5,1551.4,1.07454269]
[1673888104540,25.79649678,1551.5,1551.4,1.07454269]
[1673888107676,37.99849678,1551.5,1551.4,1.07454269]
[1673888107887,25.78564,1551.3,1550.9,0.07059879]
[1673888108097,7.77345,1551.0,1550.9,0.07059879]
[1673888108309,12.94621458,1551.0,1550.9,0.07059879]
[1673888108602,20.71966458,1551.0,1550.9,0.07059879]
[1673888110104,23.92016804,1551.0,1550.9,0.07059879]
[1673888110463,32.67615482,1551.0,1550.9,0.07059879]
[1673888110676,32.67015482,1551.0,1550.9,0.07059879]
[1673888113695,24.05715482,1551.0,1550.9,0.07059879]
[1673888113906,24.54095482,1551.0,1550.9,0.07059879]
[1673888114831,24.54095482,1551.0,1550.7,0.0243052]
[1673888114832,29.01295482,1551.0,1550.7,0.0243052]
[1673888115042,2.974,1550.8,1550.7,0.0243052]
[1673888115304,22.31884,1550.8,1550.7,0.0243052]
[1673888115626,22.38484,1550.8,1550.7,0.0243052]
[1673888119683,25.65762678,1550.8,1550.7,0.0243052]
[1673888120627,2.0,1550.7,1550.6,0.0817267]
[1673888120843,32.29849024,1550.7,1550.6,0.0817267]
[1673888121029,31.88059024,1550.7,1550.6,0.0817267]
[1673888121476,30.38559024,1550.7,1550.6,0.0817267]
[1673888121657,28.38559024,1550.7,1550.6,0.0817267]
[1673888130018,6.29660758,1550.7,1550.6,0.0817267]
[1673888130397,6.29660758,1550.7,1550.6,0.8347267]
[1673888130812,6.29660758,1550.7,1550.6,0.0817267]
[1673888132326,14.22830758,1550.7,1550.6,0.0817267]
[1673888132691,17.50109436,1550.7,1550.6,0.40410925]
[1673888132904,29.22845312,1550.7,1550.6,0.40410925]
[1673888133115,32.71235312,1550.7,1550.6,0.40410925]
[1673888135011,32.71235312,1550.7,1550.4,0.07971892]
[1673888135326,22.32259,1550.5,1550.4,0.07971892]
[1673888135574,34.0363952,1550.5,1550.4,0.07971892]
[1673888140162,30.62790678,1550.5,1550.4,0.07971892]
[1673888141157,27.35512,1550.5,1550.4,0.83271892]
[1673888141374,0.066,1550.5,1550.4,0.83271892]
[1673888141524,0.066,1550.8,1550.4,7.28265892]
[1673888141735,1.483,1550.9,1550.4,9.7493784]
[1673888141944,1.483,1550.9,1550.5,0.97493784]
[1673888141945,4.75578678,1550.9,1550.5,0.97493784]
[1673888142200,4.75578678,1550.9,1550.5,2.97493784]
[1673888143416,4.75578678,1550.9,1550.6,1.6002496]
[1673888143932,11.20366678,1550.9,1550.6,1.6002496]
[1673888144092,11.26966678,1550.9,1550.6,1.6002496]
[1673888144257,11.26966678,1550.9,1550.6,2.80542763]
[1673888144483,11.26966678,1550.9,1550.6,1.20517803]
[1673888147094,0.066,1550.9,1550.6,3.20517803]
[1673888147333,9.8611,1551.1,1550.7,1.60017975]
[1673888147540,9.8611,1551.1,1550.8,6.4482]
[1673888147541,13.13388678,1551.1,1550.8,6.4482]
[1673888147766,4.83378678,1551.1,1550.8,8.5142]
[1673888147986,1.495,1551.1,1550.9,2.0]
[1673888148139,1.495,1551.1,1550.8,17.19970929]
[1673888148517,0.53495243,1551.1,1550.8,17.19970929]
[1673888149303,0.53495243,1551.1,1550.8,23.64798929]
[1673888152245,19.89045,1551.2,1550.8,23.64798929]
[1673888152511,24.65223678,1551.2,1550.9,2.0]
[1673888153052,0.066,1551.2,1550.9,23.90832893]
[1673888153355,20.8992,1551.4,1550.9,23.97432893]
[1673888153513,24.17198678,1551.4,1550.9,23.97432893]
[1673888156254,3.27278678,1551.3,1550.9,0.066]